fUSD/lending_fUSD_20241031
["ID","MTS","AMOUNT","RATE_DAILY","PERIOD"]
[341096679,1730363466445,-500.0,0.00051898,120]
[341096680,1730363466454,-500.0,0.00051898,120]
[341096681,1730363466463,-533.48,0.00051898,120]
[341096682,1730363466472,-2776.36,0.00051898,120]
[341096683,1730363466484,-500.0,0.00051898,120]
[341096684,1730363466494,-10538.48,0.00051898,120]
[341096685,1730363466503,-901.17,0.00051898,120]
[341096686,1730363466512,-507.28,0.00051898,120]
[341096687,1730363466521,-546.67,0.00051898,120]
[341096688,1730363466531,-912.95,0.00051898,120]
[341096689,1730363466540,-500.0,0.00051898,120]
[341096690,1730363466549,-500.0,0.00051898,120]
[341096691,1730363466558,-1002.39,0.00051898,120]
[341096692,1730363466567,-570.59,0.00051898,120]
[341096693,1730363466576,-922.94,0.00051898,120]
[341096694,1730363466585,-805.39,0.00051898,120]
[341096695,1730363466594,-500.0,0.00051898,120]
[341096696,1730363466603,-500.0,0.00051898,120]
[341096697,1730363466613,-500.0,0.00051898,120]
[341096698,1730363466626,-500.0,0.00051898,120]
[341096699,1730363466635,-500.0,0.00051898,120]
[341096700,1730363466644,-500.0,0.00051899,120]
[341096701,1730363466653,-500.0,0.00051899,120]
[341096702,1730363466662,-500.0,0.00051899,120]
[341096703,1730363466671,-4556.39,0.00051899,120]
[341096704,1730363466680,-5896.63,0.00051899,120]
[341096705,1730363466688,-150.0,0.000519,90]
[341096706,1730363466697,-397.0,0.000519,40]
[341096707,1730363466707,-150.0,0.000519,120]
[341096708,1730363466715,-1018.87539273,0.000519,120]
[341096709,1730363466725,-2034.29,0.000519,14]
[341096710,1730363466733,-2273.5944812,0.000519,5]
[341096711,1730363466742,-305.42146949,0.000519,2]
[341096712,1730363466751,-161.47763536,0.000519,120]
[341096713,1730363466760,-1000.0,0.000519,25]
[341096714,1730363466769,-1000.0,0.000519,25]
[341096715,1730363466779,-456.58546638,0.000519,2]
[341096716,1730363466788,-159.08075387,0.000519,120]
[341096717,1730363466797,-159.08075387,0.000519,120]
[341096718,1730363466806,-159.08075387,0.000519,120]
[341096719,1730363466815,-159.08075387,0.000519,120]
[341096720,1730363466824,-159.08075387,0.000519,120]
[341096721,1730363466833,-159.08075387,0.000519,120]
[341096722,1730363466843,-159.08075387,0.000519,120]
[341096723,1730363466852,-159.08075387,0.000519,120]
[341096724,1730363466861,-159.08075387,0.000519,120]
[341096725,1730363466870,-159.08075387,0.000519,120]
[341096726,1730363466880,-159.08075387,0.000519,120]
[341096727,1730363466889,-159.08075387,0.000519,120]
[341096728,1730363466898,-159.08075387,0.000519,120]
[341096729,1730363466908,-159.08075387,0.000519,120]
[341096730,1730363466916,-159.08075387,0.000519,120]
[341096731,1730363466926,-159.08,0.000519,120]
[341096732,1730363466935,-1226.21930598,0.000519,120]
[341096733,1730363466944,-1226.21930598,0.000519,120]
[341096734,1730363466954,-1226.21930598,0.000519,120]
[341096735,1730363466963,-1226.21930598,0.000519,120]
[341096736,1730363466972,-1226.21930598,0.000519,120]
[341096737,1730363466982,-1226.21930598,0.000519,120]
[341096738,1730363466991,-1226.21930598,0.000519,120]
[341096739,1730363467001,-1226.21930598,0.000519,120]
[341096740,1730363467010,-1226.21930598,0.000519,120]
[341096741,1730363467020,-1226.21930598,0.000519,120]
[341096742,1730363467030,-1226.21930598,0.000519,120]
[341096743,1730363467040,-1226.21930598,0.000519,120]
[341096744,1730363467049,-1226.21930598,0.000519,120]
[341096745,1730363467060,-1226.21930598,0.000519,120]
[341096746,1730363467070,-1226.21930598,0.000519,120]
[341096747,1730363467080,-1226.21930598,0.000519,120]
[341096748,1730363467089,-1226.21930598,0.000519,120]
[341096749,1730363467099,-1226.21930598,0.000519,120]
[341096750,1730363467108,-1226.21930598,0.000519,120]
[341096751,1730363467118,-1226.21,0.000519,120]
[341096752,1730363467128,-1099.06887134,0.000519,120]
[341096753,1730363467139,-1099.06887134,0.000519,120]
[341096754,1730363467148,-1099.06887134,0.000519,120]
[341096755,1730363467157,-1099.06887134,0.000519,120]
[341096756,1730363467166,-1099.06887134,0.000519,120]
[341096757,1730363467178,-1099.06887134,0.000519,120]
[341096758,1730363467188,-1099.06887134,0.000519,120]
[341096759,1730363467198,-1099.06887134,0.000519,120]
[341096760,1730363467209,-1099.06887134,0.000519,120]
[341096761,1730363467219,-1099.06887134,0.000519,120]
[341096762,1730363467228,-1099.06887134,0.000519,120]
[341096763,1730363467237,-1099.06887134,0.000519,120]
[341096764,1730363467247,-1099.06887134,0.000519,120]
[341096765,1730363467256,-1099.06887134,0.000519,120]
[341096766,1730363467265,-1099.06887134,0.000519,120]
[341096767,1730363467275,-1099.06887134,0.000519,120]
[341096768,1730363467285,-1099.06887134,0.000519,120]
[341096769,1730363467294,-1099.06887134,0.000519,120]
[341096770,1730363467305,-1099.06887134,0.000519,120]
[341096771,1730363467314,-1099.06,0.000519,120]
[341096772,1730363467325,-169.92497156,0.000519,28]
[341096773,1730363467335,-150.0,0.00051902,7]
[341096774,1730363467346,-150.0,0.00051911,7]
[341096775,1730363467355,-150.0,0.00051923,7]
[341096776,1730363467364,-1500.0,0.00051944,14]
[341096777,1730363467373,-1500.0,0.00051948,14]
[341096778,1730363467383,-500.0,0.00051959,120]
[341096779,1730363467392,-500.0,0.00051959,5]
[341096780,1730363467401,-500.0,0.00051959,2]
[341096781,1730363467410,-7100.0,0.0005196,120]
[341096782,1730363467420,-26052.2001668,0.00051964,2]
[341096783,1730363467429,-20243.0949438,0.00051964,2]
[341096784,1730363467439,-14433.9897208,0.00051964,2]
[341096785,1730363467449,-11140.5406193,0.00051964,2]
[341096786,1730363467459,-8681.4246298,0.00051964,2]
[341096787,1730363467470,-6222.3086402,0.00051964,2]
[341096788,1730363467481,-150.0,0.00051973,30]
[341096789,1730363467490,-151.75239682,0.00051973,7]
[341096790,1730363467499,-204.03,0.0005198,120]
[341096791,1730363467508,-150.0,0.00051983,7]
[341096792,1730363467518,-150.0,0.00051985,7]
[341096793,1730363467530,-150.5,0.0005199,120]
[341096794,1730363467540,-183.71983357,0.0005199,7]
[341096795,1730363467551,-500.0,0.00051997,120]
[341096796,1730363467561,-570.0599949,0.00051997,120]
[341096797,1730363467571,-293.22779501,0.00051997,120]
[341096798,1730363467581,-509.82,0.00051997,120]
[341096799,1730363467591,-500.0,0.00051997,120]
[341096800,1730363467601,-531.61,0.00051997,120]
[341096801,1730363467610,-500.0,0.00051997,120]
[341096802,1730363467620,-500.0,0.00051997,2]
[341096803,1730363467630,-500.0,0.00051997,120]
[341096804,1730363467640,-500.0,0.00051997,120]
[341096805,1730363467650,-500.0,0.00051997,120]
[341096806,1730363467659,-646.65,0.00051997,120]
[341096807,1730363467668,-500.0,0.00051997,120]
[341096808,1730363467678,-500.0,0.00051997,120]
[341096809,1730363467687,-500.0,0.00051997,120]
[341096810,1730363467697,-500.0,0.00051997,120]
[341096811,1730363467706,-500.0,0.00051997,120]
[341096812,1730363467716,-500.0,0.00051997,120]
[341096813,1730363467726,-491.25669666,0.00051997,120]
[341096814,1730363467735,-500.0,0.00051997,120]
[341096815,1730363467744,-500.0,0.00051997,120]
[341096816,1730363467754,-500.0,0.00051997,120]
[341096817,1730363467764,-500.0,0.00051997,60]
[341096818,1730363467774,-500.0,0.00051997,120]
[341096819,1730363467784,-151.84060343,0.00051997,33]
[341096820,1730363467794,-500.0,0.00051997,120]
[341096821,1730363467804,-500.0,0.00051997,120]
[341096822,1730363467815,-500.0,0.00051997,120]
[341096823,1730363467825,-1032.62,0.00051997,120]
[341096824,1730363467835,-1682.6,0.00051997,2]
[341096825,1730363467844,-1591.58,0.00051997,21]
[341096826,1730363467854,-1220.65,0.00051997,120]
[341096827,1730363467865,-1278.37,0.00051997,120]
[341096828,1730363467875,-500.0,0.00051997,120]
[341096829,1730363467886,-500.0,0.00051997,120]
[341096830,1730363467895,-500.0,0.00051997,120]
[341096831,1730363467905,-1908.02,0.00051997,120]
[341096832,1730363467914,-572.73955713,0.00051997,120]
[341096833,1730363467924,-581.27,0.00051997,120]
[341096834,1730363467935,-606.86446716,0.00051997,120]
[341096835,1730363467944,-1938.45,0.00051997,120]
[341096836,1730363467953,-500.0,0.00051997,120]
[341096837,1730363467963,-400.46384724,0.00051997,120]
[341096838,1730363467972,-500.0,0.00051997,120]
[341096839,1730363467982,-500.0,0.00051997,120]
[341096840,1730363467992,-500.0,0.00051997,120]
[341096841,1730363468002,-4556.39,0.00051997,120]
[341096842,1730363468011,-890.13,0.00051997,120]
[341096843,1730363468021,-1314.67,0.00051997,120]
[341096844,1730363468030,-5896.63,0.00051997,120]
[341096845,1730363468040,-1021.05,0.00051997,120]
[341096846,1730363468050,-500.0,0.00051998,120]
[341096847,1730363468059,-500.0,0.00051998,120]
[341096848,1730363468069,-509.82,0.00051998,120]
[341096849,1730363468078,-509.82,0.00051998,120]
[341096850,1730363468088,-500.0,0.00051998,120]
[341096851,1730363468098,-500.0,0.00051998,120]
[341096852,1730363468107,-531.61,0.00051998,120]
[341096853,1730363468117,-531.61,0.00051998,120]
[341096854,1730363468129,-500.0,0.00051998,120]
[341096855,1730363468139,-500.0,0.00051998,120]
[341096856,1730363468149,-500.0,0.00051998,2]
[341096857,1730363468158,-500.0,0.00051998,2]
[341096858,1730363468168,-500.0,0.00051998,120]
[341096859,1730363468178,-500.0,0.00051998,120]
[341096860,1730363468187,-500.0,0.00051998,120]
[341096861,1730363468197,-500.0,0.00051998,120]
[341096862,1730363468206,-500.0,0.00051998,120]
[341096863,1730363468215,-500.0,0.00051998,120]
[341096864,1730363468227,-646.65,0.00051998,120]
[341096865,1730363468236,-646.65,0.00051998,120]
[341096866,1730363468246,-227.27736253,0.00051998,120]
[341096867,1730363468256,-500.0,0.00051998,120]
[341096868,1730363468266,-187.05,0.00051998,120]
[341096869,1730363468275,-500.0,0.00051998,120]
[341096870,1730363468284,-196.77386314,0.00051998,120]
[341096871,1730363468293,-500.0,0.00051998,120]
[341096872,1730363468303,-500.0,0.00051998,120]
[341096873,1730363468312,-529.09,0.00051998,120]
[341096874,1730363468322,-529.09,0.00051998,120]
[341096875,1730363468332,-500.0,0.00051998,120]
[341096876,1730363468341,-500.0,0.00051998,120]
[341096877,1730363468351,-500.0,0.00051998,120]
[341096878,1730363468360,-500.0,0.00051998,120]
[341096879,1730363468369,-500.0,0.00051998,120]
[341096880,1730363468378,-500.0,0.00051998,120]
[341096881,1730363468388,-500.0,0.00051998,120]
[341096882,1730363468398,-500.0,0.00051998,120]
[341096883,1730363468407,-500.0,0.00051998,120]
[341096884,1730363468416,-500.0,0.00051998,120]
[341096885,1730363468426,-524.14,0.00051998,120]
[341096886,1730363468435,-524.14,0.00051998,120]
[341096887,1730363468445,-386.7,0.00051998,120]
[341096888,1730363468455,-386.7,0.00051998,120]
[341096889,1730363468465,-500.0,0.00051998,120]
[341096890,1730363468474,-500.0,0.00051998,120]
[341096891,1730363468496,-500.0,0.00051998,120]
[341096892,1730363468508,-486.95407685,0.00051998,120]
[341096893,1730363468519,-948.36,0.00051998,120]
[341096894,1730363468531,-948.36,0.00051998,120]
[341096895,1730363468544,-500.0,0.00051998,120]
[341096896,1730363468554,-500.0,0.00051998,120]
[341096897,1730363468565,-500.0,0.00051998,120]
[341096898,1730363468574,-500.0,0.00051998,120]
[341096899,1730363468584,-500.0,0.00051998,120]
[341096900,1730363468593,-500.0,0.00051998,120]
[341096901,1730363468603,-500.0,0.00051998,120]
[341096902,1730363468614,-500.0,0.00051998,120]
[341096903,1730363468623,-429.50789789,0.00051998,120]
[341096904,1730363468634,-517.45,0.00051998,120]
[341096905,1730363468644,-517.45,0.00051998,120]
[341096906,1730363468653,-500.0,0.00051998,120]
[341096907,1730363468663,-500.0,0.00051998,120]
[341096908,1730363468672,-500.0,0.00051998,120]
[341096909,1730363468681,-420.5968971,0.00051998,120]
[341096910,1730363468691,-669.22,0.00051998,120]
[341096911,1730363468700,-669.22,0.00051998,120]
[341096912,1730363468709,-853.72,0.00051998,120]
[341096913,1730363468719,-853.72,0.00051998,120]
[341096914,1730363468730,-558.86,0.00051998,120]
[341096915,1730363468739,-558.86,0.00051998,120]
[341096916,1730363468749,-500.0,0.00051998,120]
[341096917,1730363468758,-500.0,0.00051998,120]
[341096918,1730363468768,-635.56,0.00051998,120]
[341096919,1730363468777,-635.56,0.00051998,120]
[341096920,1730363468787,-500.0,0.00051998,120]
[341096921,1730363468796,-500.0,0.00051998,120]
[341096922,1730363468806,-500.0,0.00051998,120]
[341096923,1730363468816,-500.0,0.00051998,120]
[341096924,1730363468825,-500.0,0.00051998,60]
[341096925,1730363468835,-500.0,0.00051998,60]
[341096926,1730363468844,-1035.51,0.00051998,120]
[341096927,1730363468854,-1035.51,0.00051998,120]
[341096928,1730363468863,-1135.77,0.00051998,120]
[341096929,1730363468873,-1135.77,0.00051998,120]
[341096930,1730363468883,-500.0,0.00051998,120]
[341096931,1730363468892,-500.0,0.00051998,120]
[341096932,1730363468902,-585.34,0.00051998,120]
[341096933,1730363468911,-585.34,0.00051998,120]
[341096934,1730363468921,-500.0,0.00051998,120]
[341096935,1730363468930,-500.0,0.00051998,120]
[341096936,1730363468939,-500.0,0.00051998,120]
[341096937,1730363468949,-500.0,0.00051998,120]
[341096938,1730363468959,-500.0,0.00051998,120]
[341096939,1730363468968,-500.0,0.00051998,120]
[341096940,1730363468978,-500.0,0.00051998,120]
[341096941,1730363468988,-518.97047182,0.00051998,120]
[341096942,1730363468998,-500.0,0.00051998,120]
[341096943,1730363469148,-500.0,0.00051998,120]
[341096944,1730363469158,-500.0,0.00051998,120]
[341096945,1730363469167,-500.0,0.00051998,120]
[341096946,1730363469178,-1167.95,0.00051998,7]
[341096947,1730363469188,-1167.95,0.00051998,7]
[341096948,1730363469199,-596.88,0.00051998,120]
[341096949,1730363469210,-596.88,0.00051998,120]
[341096950,1730363469219,-500.0,0.00051998,120]
[341096951,1730363469229,-500.0,0.00051998,120]
[341096952,1730363469238,-500.0,0.00051998,120]
[341096953,1730363469248,-500.0,0.00051998,120]
[341096954,1730363469258,-500.0,0.00051998,120]
[341096955,1730363469267,-500.0,0.00051998,120]
[341096956,1730363469277,-594.63,0.00051998,120]
[341096957,1730363469288,-594.63,0.00051998,120]
[341096958,1730363469298,-500.0,0.00051998,120]
[341096959,1730363469307,-500.0,0.00051998,120]
[341096960,1730363469317,-500.0,0.00051998,120]
[341096961,1730363469329,-500.0,0.00051998,120]
[341096962,1730363469339,-710.63,0.00051998,120]
[341096963,1730363469349,-710.63,0.00051998,120]
[341096964,1730363469359,-1032.62,0.00051998,120]
[341096965,1730363469368,-1032.62,0.00051998,120]
[341096966,1730363469378,-1682.6,0.00051998,2]
[341096967,1730363469391,-1591.58,0.00051998,21]
[341096968,1730363469401,-1682.6,0.00051998,2]
[341096969,1730363469411,-1591.58,0.00051998,21]
[341096970,1730363469421,-500.0,0.00051998,120]
[341096971,1730363469431,-500.0,0.00051998,120]
[341096972,1730363469442,-1220.65,0.00051998,120]
[341096973,1730363469452,-1220.65,0.00051998,120]
[341096974,1730363469463,-500.0,0.00051998,120]
[341096975,1730363469472,-500.0,0.00051998,120]
[341096976,1730363469482,-533.48,0.00051998,120]
[341096977,1730363469492,-533.48,0.00051998,120]
[341096978,1730363469502,-1278.37,0.00051998,120]
[341096979,1730363469512,-1278.37,0.00051998,120]
[341096980,1730363469523,-2776.36,0.00051998,120]
[341096981,1730363469534,-2776.36,0.00051998,120]
[341096982,1730363469544,-500.0,0.00051998,120]
[341096983,1730363469556,-500.0,0.00051998,120]
[341096984,1730363469566,-500.0,0.00051998,120]
[341096985,1730363469575,-500.0,0.00051998,120]
[341096986,1730363469586,-10538.48,0.00051998,120]
[341096987,1730363469597,-10538.48,0.00051998,120]
[341096988,1730363469608,-901.17,0.00051998,120]
[341096989,1730363469617,-901.17,0.00051998,120]
[341096990,1730363469627,-507.28,0.00051998,120]
[341096991,1730363469636,-507.28,0.00051998,120]
[341096992,1730363469646,-546.67,0.00051998,120]
[341096993,1730363469655,-546.67,0.00051998,120]
[341096994,1730363469664,-266.02108452,0.00051998,120]
[341096995,1730363469673,-500.0,0.00051998,120]
[341096996,1730363469683,-500.0,0.00051998,120]
[341096997,1730363469692,-912.95,0.00051998,120]
[341096998,1730363469701,-912.95,0.00051998,120]
[341096999,1730363469711,-500.0,0.00051998,120]
[341097000,1730363469720,-500.0,0.00051998,120]
[341097001,1730363469730,-500.0,0.00051998,120]
[341097002,1730363469745,-500.0,0.00051998,120]
[341097003,1730363469754,-1908.02,0.00051998,120]
[341097004,1730363469763,-1908.02,0.00051998,120]
[341097005,1730363469773,-1002.39,0.00051998,120]
[341097006,1730363469782,-1002.39,0.00051998,120]
[341097007,1730363469791,-570.59,0.00051998,120]
[341097008,1730363469800,-570.59,0.00051998,120]
[341097009,1730363469809,-922.94,0.00051998,120]
[341097010,1730363469818,-922.94,0.00051998,120]
[341097011,1730363469828,-805.39,0.00051998,120]
[341097012,1730363469837,-805.39,0.00051998,120]
[341097013,1730363469846,-581.27,0.00051998,120]
[341097014,1730363469856,-581.27,0.00051998,120]
[341097015,1730363469865,-500.0,0.00051998,120]
[341097016,1730363469874,-500.0,0.00051998,120]
[341097017,1730363469883,-451.84563981,0.00051998,120]
[341097018,1730363469893,-500.0,0.00051998,120]
[341097019,1730363469903,-204.56791201,0.00051998,120]
[341097020,1730363469912,-500.0,0.00051998,120]
[341097021,1730363469921,-329.99184535,0.00051998,120]
[341097022,1730363469931,-1938.45,0.00051998,120]
[341097023,1730363469941,-1938.45,0.00051998,120]
[341097024,1730363469950,-168.20354775,0.00051998,120]
[341097025,1730363469961,-500.0,0.00051998,120]
[341097026,1730363469972,-500.0,0.00051998,120]
[341097027,1730363469984,-500.0,0.00051998,120]
[341097028,1730363469994,-500.0,0.00051998,120]
[341097029,1730363470003,-500.0,0.00051998,120]
[341097030,1730363470012,-500.0,0.00051998,120]
[341097031,1730363470022,-500.0,0.00051998,120]
[341097032,1730363470031,-500.0,0.00051998,120]
[341097033,1730363470041,-500.0,0.00051998,120]
[341097034,1730363470050,-4556.39,0.00051998,120]
[341097035,1730363470060,-4556.39,0.00051998,120]
[341097036,1730363470070,-4556.39,0.00051998,120]
[341097037,1730363470079,-890.13,0.00051998,120]
[341097038,1730363470088,-890.13,0.00051998,120]
[341097039,1730363470098,-1314.67,0.00051998,120]
[341097040,1730363470107,-1314.67,0.00051998,120]
[341097041,1730363470117,-5896.63,0.00051998,120]
[341097042,1730363470127,-5896.63,0.00051998,120]
[341097043,1730363470137,-5896.63,0.00051998,120]
[341097044,1730363470150,-1021.05,0.00051998,120]
[341097045,1730363470160,-1021.05,0.00051998,120]
[341097046,1730363470169,-300.0,0.00051999,10]
[341097047,1730363470178,-300.0,0.00051999,10]
[341097048,1730363470190,-150.01,0.00051999,120]
[341097049,1730363470199,-1075.90613763,0.00051999,2]
[341097050,1730363470209,-500.0,0.00051999,120]
[341097051,1730363470219,-500.0,0.00051999,120]
[341097052,1730363470229,-500.0,0.00051999,120]
[341097053,1730363470238,-500.0,0.00051999,120]
[341097054,1730363470248,-500.0,0.00051999,120]
[341097055,1730363470257,-500.0,0.00051999,120]
[341097056,1730363470267,-610.32398377,0.00051999,2]
[341097057,1730363470276,-322.35801942,0.00051999,10]
[341097058,1730363470286,-500.0,0.00051999,120]
[341097059,1730363470295,-500.0,0.00051999,120]
[341097060,1730363470304,-500.0,0.00051999,120]
[341097061,1730363470313,-500.0,0.00051999,120]
[341097062,1730363470323,-500.0,0.00051999,120]
[341097063,1730363470332,-500.0,0.00051999,120]
[341097064,1730363470341,-463.5910918,0.00051999,120]
[341097065,1730363470350,-306.52431117,0.00051999,10]
[341097066,1730363470359,-509.82,0.00051999,120]
[341097067,1730363470369,-509.82,0.00051999,120]
[341097068,1730363470378,-509.82,0.00051999,120]
[341097069,1730363470387,-509.82,0.00051999,120]
[341097070,1730363470397,-509.82,0.00051999,120]
[341097071,1730363470406,-509.82,0.00051999,120]
[341097072,1730363470416,-509.82,0.00051999,120]
[341097073,1730363470426,-509.82,0.00051999,120]
[341097074,1730363470435,-509.82,0.00051999,120]
[341097075,1730363470444,-509.82,0.00051999,120]
[341097076,1730363470453,-509.82,0.00051999,120]
[341097077,1730363470463,-509.82,0.00051999,120]
[341097078,1730363470472,-509.82,0.00051999,120]
[341097079,1730363470483,-509.82,0.00051999,120]
[341097080,1730363470492,-500.0,0.00051999,120]
[341097081,1730363470501,-500.0,0.00051999,120]
[341097082,1730363470511,-500.0,0.00051999,120]
[341097083,1730363470521,-500.0,0.00051999,120]
[341097084,1730363470530,-500.0,0.00051999,120]
[341097085,1730363470539,-500.0,0.00051999,120]
[341097086,1730363470549,-500.0,0.00051999,120]
[341097087,1730363470559,-500.0,0.00051999,120]
[341097088,1730363470568,-500.0,0.00051999,120]
[341097089,1730363470578,-308.86220297,0.00051999,120]
[341097090,1730363470587,-531.61,0.00051999,120]
[341097091,1730363470597,-531.61,0.00051999,120]
[341097092,1730363470606,-531.61,0.00051999,120]
[341097093,1730363470615,-531.61,0.00051999,120]
[341097094,1730363470625,-531.61,0.00051999,120]
[341097095,1730363470634,-531.61,0.00051999,120]
[341097096,1730363470643,-531.61,0.00051999,120]
[341097097,1730363470653,-531.61,0.00051999,120]
[341097098,1730363470663,-531.61,0.00051999,120]
[341097099,1730363470672,-531.61,0.00051999,120]
[341097100,1730363470681,-531.61,0.00051999,120]
[341097101,1730363470690,-531.61,0.00051999,120]
[341097102,1730363470699,-531.61,0.00051999,120]
[341097103,1730363470709,-531.70914446,0.00051999,120]
[341097104,1730363470718,-608.6259592,0.00051999,120]
[341097105,1730363470729,-500.0,0.00051999,2]
[341097106,1730363470738,-500.0,0.00051999,2]
[341097107,1730363470747,-500.0,0.00051999,2]
[341097108,1730363470757,-500.0,0.00051999,2]
[341097109,1730363470767,-626.25128567,0.00051999,2]
[341097110,1730363470776,-500.0,0.00051999,120]
[341097111,1730363470786,-500.0,0.00051999,120]
[341097112,1730363470795,-500.0,0.00051999,120]
[341097113,1730363470804,-202.25482053,0.00051999,120]
[341097114,1730363470813,-500.0,0.00051999,120]
[341097115,1730363470823,-433.11569015,0.00051999,120]
[341097116,1730363470832,-500.0,0.00051999,120]
[341097117,1730363470841,-500.0,0.00051999,120]
[341097118,1730363470851,-500.0,0.00051999,120]
[341097119,1730363470860,-584.4964519,0.00051999,120]
[341097120,1730363470870,-646.65,0.00051999,120]
[341097121,1730363470879,-646.65,0.00051999,120]
[341097122,1730363470888,-646.65,0.00051999,120]
[341097123,1730363470898,-646.65,0.00051999,120]
[341097124,1730363470907,-646.65,0.00051999,120]
[341097125,1730363470917,-646.65,0.00051999,120]
[341097126,1730363470926,-646.65,0.00051999,120]
[341097127,1730363470936,-646.65,0.00051999,120]
[341097128,1730363470945,-646.65,0.00051999,120]
[341097129,1730363470955,-646.65,0.00051999,120]
[341097130,1730363470964,-646.65,0.00051999,120]
[341097131,1730363470973,-646.65,0.00051999,120]
[341097132,1730363470982,-646.65,0.00051999,120]
[341097133,1730363470991,-646.71497243,0.00051999,120]
[341097134,1730363471001,-500.0,0.00051999,120]
[341097135,1730363471011,-240.81546642,0.00051999,120]
[341097136,1730363471021,-529.09,0.00051999,120]
[341097137,1730363471030,-529.09,0.00051999,120]
[341097138,1730363471039,-529.09,0.00051999,120]
[341097139,1730363471048,-529.09,0.00051999,120]
[341097140,1730363471058,-529.09,0.00051999,120]
[341097141,1730363471067,-529.09,0.00051999,120]
[341097142,1730363471076,-529.09,0.00051999,120]
[341097143,1730363471086,-529.09,0.00051999,120]
[341097144,1730363471095,-529.09,0.00051999,120]
[341097145,1730363471105,-529.09,0.00051999,120]
[341097146,1730363471114,-529.09,0.00051999,120]
[341097147,1730363471123,-529.23,0.00051999,120]
[341097148,1730363471132,-499.25275885,0.00051999,120]
[341097149,1730363471143,-500.0,0.00051999,120]
[341097150,1730363471154,-500.0,0.00051999,120]
[341097151,1730363471163,-500.0,0.00051999,120]
[341097152,1730363471172,-345.13758271,0.00051999,120]
[341097153,1730363471181,-500.0,0.00051999,120]
[341097154,1730363471190,-432.2705755,0.00051999,120]
[341097155,1730363471200,-500.0,0.00051999,120]
[341097156,1730363471209,-500.0,0.00051999,120]
[341097157,1730363471218,-500.0,0.00051999,120]
[341097158,1730363471229,-500.0,0.00051999,120]
[341097159,1730363471239,-500.0,0.00051999,120]
[341097160,1730363471248,-500.0,0.00051999,120]
[341097161,1730363471257,-168.73401731,0.00051999,120]
[341097162,1730363471267,-500.0,0.00051999,120]
[341097163,1730363471276,-500.0,0.00051999,120]
[341097164,1730363471287,-500.0,0.00051999,120]
[341097165,1730363471298,-500.0,0.00051999,120]
[341097166,1730363471308,-500.0,0.00051999,120]
[341097167,1730363471317,-500.0,0.00051999,120]
[341097168,1730363471326,-536.14972326,0.00051999,120]
[341097169,1730363471336,-524.14,0.00051999,120]
[341097170,1730363471345,-524.14,0.00051999,120]
[341097171,1730363471355,-524.14,0.00051999,120]
[341097172,1730363471364,-524.14,0.00051999,120]
[341097173,1730363471373,-524.14,0.00051999,120]
[341097174,1730363471382,-524.14,0.00051999,120]
[341097175,1730363471392,-524.14,0.00051999,120]
[341097176,1730363471401,-524.14,0.00051999,120]
[341097177,1730363471410,-524.14,0.00051999,120]
[341097178,1730363471420,-524.14,0.00051999,120]